[Event "Lithuanian Chess League 2021"]
[Site "Various cities"]
[Date "2021.05.14"]
[Round "5.1"]
[White "Stauskas, Lukas"]
[Black "Chocenka, Dmitrijus"]
[Result "1/2-1/2"]
[WhiteElo "2316"]
[BlackElo "2327"]
[PlyCount "114"]
[TimeControl "90/40+30:0"]
[WhiteClock "0:08:10"]
[BlackClock "0:21:07"]

1. d4 {[%emt 0:00:03]} Nf6 {[%emt 0:00:06]} 2. c4 {[%emt 0:00:08]} g6 {[%emt 0:
00:04]} 3. Nc3 {[%emt 0:00:07]} Bg7 {[%emt 0:00:04]} 4. e4 {[%emt 0:00:07]} d6
{[%emt 0:00:05]} 5. Nf3 {[%emt 0:00:09]} O-O {[%emt 0:00:07]} 6. h3 {[%emt 0:
00:06]} e5 {[%emt 0:00:23]} 7. d5 {[%emt 0:00:15]} a5 {[%emt 0:00:22]} 8. g4 {
[%emt 0:00:22]} Na6 {[%emt 0:00:32]} 9. Be3 {[%emt 0:00:09]} Nd7 {[%emt 0:05:
20]} 10. a3 {[%emt 0:00:21]} Nb6 {[%emt 0:04:45]} 11. Nd2 {[%emt 0:03:28]} f5 {
[%emt 0:01:48]} 12. gxf5 {[%emt 0:10:25]} gxf5 {[%emt 0:00:14]} 13. exf5 {
[%emt 0:00:12]} Bxf5 {[%emt 0:00:07]} 14. Nde4 {[%emt 0:00:08]} Nc5 {[%emt 0:
23:28]} 15. Nxc5 {[%emt 0:34:25]} dxc5 {[%emt 0:00:25]} 16. h4 {[%emt 0:00:25]}
Qe7 {[%emt 0:04:28]} 17. Be2 {[%emt 0:01:45]} Kh8 {[%emt 0:02:23]} 18. Qd2 {
[%emt 0:01:11]} Bf6 {[%emt 0:05:12]} 19. O-O-O {[%emt 0:01:41]} Rad8 {[%emt 0:
04:10]} 20. f3 {[%emt 0:15:02]} c6 {[%emt 0:07:13]} 21. Ne4 {[%emt 0:12:00]}
cxd5 {[%emt 0:05:57]} 22. Bxc5 {[%emt 0:00:06]} Qc7 {[%emt 0:01:28]} 23. Qxa5 {
[%emt 0:00:20]} dxe4 {[%emt 0:03:29]} 24. Rxd8 {[%emt 0:06:54]} Qxd8 {[%emt 0:
12:13]} 25. Bxf8 {[%emt 0:04:13]} exf3 {[%emt 0:02:14]} 26. Bc5 {[%emt 0:02:01]
} Bxh4 {[%emt 0:05:30]} 27. Rxh4 {[%emt 0:03:02]} Qxh4 {[%emt 0:01:14]} 28.
Bxb6 {[%emt 0:00:58]} Qf4+ {[%emt 0:00:57]} 29. Kd1 {[%emt 0:00:26]} fxe2+ {
[%emt 0:00:34]} 30. Kxe2 {[%emt 0:00:07]} Qxc4+ {[%emt 0:00:49]} 31. Kf2 {
[%emt 0:01:31]} Qf4+ {[%emt 0:01:42]} 32. Ke2 {[%emt 0:00:49]} Bg4+ {[%emt 0:
03:36]} 33. Kd3 {[%emt 0:00:25]} Qf3+ {[%emt 0:01:35]} 34. Kc2 {[%emt 0:02:09]}
Qd1+ {[%emt 0:00:36]} 35. Kc3 {[%emt 0:00:09]} Qc1+ {[%emt 0:00:19]} 36. Kd3 {
[%emt 0:01:06]} Bf5+ {[%emt 0:00:33]} 37. Ke2 {[%emt 0:00:07]} Qxb2+ {[%emt 0:
00:08]} 38. Kf3 {[%emt 0:01:01]} Qb3+ {[%emt 0:00:56]} 39. Be3 {[%emt 0:00:58]}
Qd1+ {[%emt 0:00:20]} 40. Kf2 {[%emt 0:00:23]} Qd6 {[%emt 0:02:44]} 41. Qa8+ {
[%emt 0:03:21]} Kg7 {[%emt 0:00:34]} 42. Qxb7+ {[%emt 0:00:08]} Bd7 {[%emt 0:
01:09]} 43. Qa7 {[%emt 0:09:36]} Kg6 {[%emt 0:01:30]} 44. Qa8 {[%emt 0:06:38]}
Qe6 {[%emt 0:01:45]} 45. Qf8 {[%emt 0:00:31]} Qf5+ {[%emt 0:06:04]} 46. Qxf5+ {
[%emt 0:00:07]} Kxf5 {[%emt 0:00:05]} 47. Bh6 {[%emt 0:01:09]} Bc6 {[%emt 0:00:
51]} 48. Kg3 {[%emt 0:01:59]} Ke4 {[%emt 0:00:15]} 49. Bg7 {[%emt 0:00:42]} Kf5
{[%emt 0:00:36]} 50. Kh4 {[%emt 0:02:09]} Be8 {[%emt 0:01:11]} 51. Bh6 {[%emt
0:00:32]} Ba4 {[%emt 0:00:14]} 52. Bc1 {[%emt 0:01:34]} Bd1 {[%emt 0:00:06]}
53. Bd2 {[%emt 0:00:32]} Ke4 {[%emt 0:00:15]} 54. Kg5 {[%emt 0:00:41]} Bc2 {
[%emt 0:03:12]} 55. Kh6 {[%emt 0:00:55]} Kd3 {[%emt 0:00:23]} 56. Be1 {[%emt 0:
00:18]} Kc4 {[%emt 0:01:09]} 57. a4 {[%emt 0:01:01]} Bxa4 {[%emt 0:00:08]}
1/2-1/2

[Event "Lithuanian Chess League 2021"]
[Site "Various cities"]
[Date "2021.05.14"]
[Round "5.2"]
[White "Indriunas, Matas"]
[Black "Vardanyan, Aras"]
[Result "0-1"]
[WhiteElo "2227"]
[BlackElo "2197"]
[PlyCount "82"]
[TimeControl "90/40+30:0"]
[WhiteClock "0:02:31"]
[BlackClock "0:30:26"]

1. e4 {[%emt 0:00:02]} c5 {[%emt 0:00:07]} 2. Nf3 {[%emt 0:00:08]} e6 {[%emt 0:
00:06]} 3. d4 {[%emt 0:00:51]} cxd4 {[%emt 0:00:06]} 4. Nxd4 {[%emt 0:00:06]}
a6 {[%emt 0:00:04]} 5. Bd3 {[%emt 0:00:29]} Ne7 {[%emt 0:00:06]} 6. c4 {[%emt
0:09:22]} Nbc6 {[%emt 0:00:05]} 7. Nb3 {[%emt 0:10:19]} g6 {[%emt 0:00:06]} 8.
O-O {[%emt 0:05:00]} Bg7 {[%emt 0:02:34]} 9. f4 {[%emt 0:02:56]} d6 {[%emt 0:
09:33]} 10. Nc3 {[%emt 0:04:40]} O-O {[%emt 0:03:28]} 11. Qe2 {[%emt 0:21:09]}
d5 {[%emt 0:02:47]} 12. e5 {[%emt 0:05:27]} Nb4 {[%emt 0:04:32]} 13. Be3 {
[%emt 0:07:24]} Nxd3 {[%emt 0:02:19]} 14. Qxd3 {[%emt 0:00:36]} dxc4 {[%emt 0:
00:08]} 15. Qxc4 {[%emt 0:00:15]} b5 {[%emt 0:05:01]} 16. Qe4 {[%emt 0:03:23]}
Rb8 {[%emt 0:01:32]} 17. Rfd1 {[%emt 0:02:59]} Qc7 {[%emt 0:01:05]} 18. Rac1 {
[%emt 0:02:22]} Bb7 {[%emt 0:06:40]} 19. Qb1 {[%emt 0:02:15]} Bc6 {[%emt 0:07:
05]} 20. Nd4 {[%emt 0:00:28]} Rfd8 {[%emt 0:05:55]} 21. Nxc6 {[%emt 0:00:40]}
Nxc6 {[%emt 0:01:26]} 22. Rxd8+ {[%emt 0:00:47]} Rxd8 {[%emt 0:00:53]} 23. Ne4
{[%emt 0:00:11]} Qb7 {[%emt 0:05:42]} 24. Nd6 {[%emt 0:01:35]} Qa8 {[%emt 0:00:
10]} 25. Qc2 {[%emt 0:12:15]} Nb4 {[%emt 0:03:34]} 26. Qc7 {[%emt 0:01:04]} Rf8
{[%emt 0:00:07]} 27. Bd2 {[%emt 0:02:23]} Qd5 {[%emt 0:02:57]} 28. Be3 {[%emt
0:03:52]} Qxa2 {[%emt 0:01:40]} 29. Bd4 {[%emt 0:01:01]} Nd5 {[%emt 0:00:22]}
30. Qc2 {[%emt 0:00:46]} Nxf4 {[%emt 0:03:11]} 31. Rf1 {[%emt 0:00:05]} Nd5 {
[%emt 0:00:18]} 32. h4 {[%emt 0:00:55]} Ne7 {[%emt 0:01:00]} 33. Ne4 {[%emt 0:
00:40]} Qd5 {[%emt 0:00:48]} 34. Bc5 {[%emt 0:00:20]} Rc8 {[%emt 0:01:03]} 35.
Rd1 {[%emt 0:00:10]} Qxe5 {[%emt 0:01:40]} 36. Bxe7 {[%emt 0:00:07]} Rxc2 {
[%emt 0:00:05]} 37. Rd8+ {[%emt 0:00:03]} Bf8 {[%emt 0:00:05]} 38. Nf6+ {[%emt
0:00:16]} Kg7 {[%emt 0:00:55]} 39. Ne8+ {[%emt 0:00:40]} Kh6 {[%emt 0:01:00]}
40. Bg5+ {[%emt 0:00:19]} Qxg5 {[%emt 0:00:13]} 41. hxg5+ {[%emt 0:00:03]} Kxg5
{[%emt 0:00:07]} 0-1

[Event "Lithuanian Chess League 2021"]
[Site "Various cities"]
[Date "2021.05.14"]
[Round "5.3"]
[White "Salna, Aleksandras"]
[Black "Limontas, Martynas"]
[Result "1-0"]
[WhiteElo "2125"]
[BlackElo "2311"]
[PlyCount "81"]
[TimeControl "90/40+30:0"]
[WhiteClock "0:13:05"]
[BlackClock "0:00:36"]

1. d4 {[%emt 0:00:02]} Nf6 {[%emt 0:00:11]} 2. c4 {[%emt 0:00:05]} e6 {[%emt 0:
00:05]} 3. Nc3 {[%emt 0:00:04]} Bb4 {[%emt 0:00:04]} 4. Qc2 {[%emt 0:00:06]} d5
{[%emt 0:00:08]} 5. a3 {[%emt 0:00:07]} Bxc3+ {[%emt 0:00:13]} 6. Qxc3 {[%emt
0:00:04]} Ne4 {[%emt 0:16:11]} 7. Qc2 {[%emt 0:00:29]} c5 {[%emt 0:00:30]} 8.
dxc5 {[%emt 0:01:06]} a5 {[%emt 0:05:54]} 9. Be3 {[%emt 0:04:04]} a4 {[%emt 0:
16:04]} 10. Rc1 {[%emt 0:06:30]} Qa5+ {[%emt 0:03:40]} 11. Bd2 {[%emt 0:00:09]}
Nxd2 {[%emt 0:06:00]} 12. Qxd2 {[%emt 0:00:07]} d4 {[%emt 0:00:19]} 13. Nf3 {
[%emt 0:13:26]} Nc6 {[%emt 0:02:04]} 14. Qxa5 {[%emt 0:00:06]} Rxa5 {[%emt 0:
00:06]} 15. e3 {[%emt 0:00:04]} dxe3 {[%emt 0:02:00]} 16. fxe3 {[%emt 0:00:12]}
Rxc5 {[%emt 0:01:21]} 17. Nd4 {[%emt 0:00:36]} Ne5 {[%emt 0:02:16]} 18. Kd2 {
[%emt 0:01:02]} Bd7 {[%emt 0:03:57]} 19. Be2 {[%emt 0:04:17]} Ke7 {[%emt 0:03:
14]} 20. Kc3 {[%emt 0:07:10]} Rhc8 {[%emt 0:09:32]} 21. Kb4 {[%emt 0:02:14]} b5
{[%emt 0:03:41]} 22. b3 {[%emt 0:00:06]} bxc4 {[%emt 0:00:24]} 23. bxc4 {[%emt
0:01:36]} R5c7 {[%emt 0:00:29]} 24. Rhg1 {[%emt 0:11:53]} Nc6+ {[%emt 0:02:03]}
25. Nxc6+ {[%emt 0:05:34]} Bxc6 {[%emt 0:00:42]} 26. Rb1 {[%emt 0:00:19]} Be4 {
[%emt 0:02:50]} 27. Kc3 {[%emt 0:07:29]} Bxb1 {[%emt 0:01:23]} 28. Rxb1 {[%emt
0:00:14]} Ra7 {[%emt 0:02:14]} 29. Rb5 {[%emt 0:01:12]} Raa8 {[%emt 0:08:05]}
30. Kb4 {[%emt 0:04:49]} Rab8 {[%emt 0:03:27]} 31. Kxa4 {[%emt 0:01:20]} Rxb5 {
[%emt 0:01:18]} 32. cxb5 {[%emt 0:00:18]} Rc3 {[%emt 0:00:05]} 33. b6 {[%emt 0:
02:14]} Kd8 {[%emt 0:01:03]} 34. Kb4 {[%emt 0:03:23]} Rxe3 {[%emt 0:00:11]} 35.
Ba6 {[%emt 0:02:20]} e5 {[%emt 0:03:21]} 36. a4 {[%emt 0:00:44]} Re1 {[%emt 0:
00:53]} 37. Bc4 {[%emt 0:04:45]} Rb1+ {[%emt 0:01:10]} 38. Kc5 {[%emt 0:00:36]}
Ra1 {[%emt 0:00:35]} 39. Kb5 {[%emt 0:02:18]} Rb1+ {[%emt 0:00:04]} 40. Ka6 {
[%emt 0:01:30]} Rd1 {[%emt 0:02:08]} 41. Ka7 {[%emt 0:03:14]} 1-0

[Event "Lithuanian Chess League 2021"]
[Site "Various cities"]
[Date "2021.05.14"]
[Round "5.4"]
[White "Mickevicius, Juras"]
[Black "Eigminas, Kipras"]
[Result "1/2-1/2"]
[WhiteElo "2281"]
[BlackElo "2095"]
[PlyCount "80"]
[TimeControl "90/40+30:0"]
[WhiteClock "0:02:21"]
[BlackClock "0:49:11"]

1. d4 {[%emt 0:00:01]} Nf6 {[%emt 0:00:03]} 2. c4 {[%emt 0:00:09]} c5 {[%emt 0:
00:03]} 3. d5 {[%emt 0:00:06]} g6 {[%emt 0:00:02]} 4. Nc3 {[%emt 0:00:08]} Bg7
{[%emt 0:00:03]} 5. Nf3 {[%emt 0:00:13]} O-O {[%emt 0:00:05]} 6. g3 {[%emt 0:
00:04]} e6 {[%emt 0:00:03]} 7. Bg2 {[%emt 0:00:06]} exd5 {[%emt 0:00:04]} 8.
cxd5 {[%emt 0:00:02]} d6 {[%emt 0:00:08]} 9. O-O {[%emt 0:00:09]} Nbd7 {[%emt
0:00:03]} 10. Bf4 {[%emt 0:00:24]} Qe7 {[%emt 0:00:04]} 11. a4 {[%emt 0:00:06]}
b6 {[%emt 0:00:03]} 12. Re1 {[%emt 0:01:56]} Ng4 {[%emt 0:00:05]} 13. Bg5 {
[%emt 0:01:36]} f6 {[%emt 0:00:04]} 14. Bd2 {[%emt 0:00:03]} a6 {[%emt 0:00:13]
} 15. Rb1 {[%emt 0:13:51]} Nge5 {[%emt 0:01:06]} 16. Qc2 {[%emt 0:16:04]} g5 {
[%emt 0:04:21]} 17. b4 {[%emt 0:05:56]} Nc4 {[%emt 0:01:01]} 18. Bc1 {[%emt 0:
02:06]} Ra7 {[%emt 0:05:14]} 19. bxc5 {[%emt 0:06:28]} bxc5 {[%emt 0:00:07]}
20. e4 {[%emt 0:10:23]} g4 {[%emt 0:17:23]} 21. Nd2 {[%emt 0:01:08]} Nxd2 {
[%emt 0:01:18]} 22. Bxd2 {[%emt 0:01:55]} Ne5 {[%emt 0:00:01]} 23. Nd1 {[%emt
0:08:36]} f5 {[%emt 0:01:13]} 24. Ne3 {[%emt 0:01:01]} fxe4 {[%emt 0:07:02]}
25. Bxe4 {[%emt 0:03:44]} Qf7 {[%emt 0:06:10]} 26. Bc3 {[%emt 0:02:54]} Qh5 {
[%emt 0:01:53]} 27. Rb8 {[%emt 0:07:59]} Raf7 {[%emt 0:01:58]} 28. Bxe5 {[%emt
0:00:45]} Bxe5 {[%emt 0:00:31]} 29. Rxc8 {[%emt 0:02:17]} Rxc8 {[%emt 0:00:31]}
30. Bf5 {[%emt 0:00:02]} Rxf5 {[%emt 0:04:15]} 31. Qxf5 {[%emt 0:03:15]} Qxf5 {
[%emt 0:00:04]} 32. Nxf5 {[%emt 0:00:02]} Kf8 {[%emt 0:00:09]} 33. Ne3 {[%emt
0:01:32]} c4 {[%emt 0:00:45]} 34. Rc1 {[%emt 0:03:46]} c3 {[%emt 0:00:14]} 35.
Nxg4 {[%emt 0:00:06]} Rc4 {[%emt 0:02:51]} 36. Nxe5 {[%emt 0:03:51]} dxe5 {
[%emt 0:00:13]} 37. Kf1 {[%emt 0:00:03]} Ke7 {[%emt 0:00:19]} 38. Ke2 {[%emt 0:
00:14]} e4 {[%emt 0:01:11]} 39. f3 {[%emt 0:05:05]} exf3+ {[%emt 0:00:14]} 40.
Kxf3 {[%emt 0:00:04]} Kd6 {[%emt 0:00:09]} 1/2-1/2

[Event "Lithuanian Chess League 2021"]
[Site "Various cities"]
[Date "2021.05.14"]
[Round "5.5"]
[White "Zozulia, Alexandr"]
[Black "Burstein, Roman"]
[Result "1/2-1/2"]
[WhiteElo "2069"]
[BlackElo "2310"]
[PlyCount "110"]
[TimeControl "90/40+30:0"]
[WhiteClock "0:05:34"]
[BlackClock "0:11:37"]

1. e4 {[%emt 0:00:00]} c5 {[%emt 0:00:21]} 2. Nc3 {[%emt 0:00:10]} Nc6 {[%emt
0:00:24]} 3. g3 {[%emt 0:00:08]} g6 {[%emt 0:00:09]} 4. d3 {[%emt 0:00:39]} Bg7
{[%emt 0:00:20]} 5. Be3 {[%emt 0:00:13]} Nd4 {[%emt 0:01:33]} 6. Bg2 {[%emt 0:
01:28]} e6 {[%emt 0:01:19]} 7. Qd2 {[%emt 0:02:28]} Ne7 {[%emt 0:07:05]} 8. Nd1
{[%emt 0:02:04]} d6 {[%emt 0:01:21]} 9. c3 {[%emt 0:01:13]} Ndc6 {[%emt 0:00:
08]} 10. Bh6 {[%emt 0:00:27]} Bxh6 {[%emt 0:17:48]} 11. Qxh6 {[%emt 0:00:03]}
Ng8 {[%emt 0:00:56]} 12. Qd2 {[%emt 0:03:28]} Nf6 {[%emt 0:00:54]} 13. f4 {
[%emt 0:03:46]} Bd7 {[%emt 0:08:08]} 14. Ne3 {[%emt 0:08:29]} O-O {[%emt 0:07:
27]} 15. Ne2 {[%emt 0:02:48]} d5 {[%emt 0:02:33]} 16. O-O {[%emt 0:22:10]} d4 {
[%emt 0:02:32]} 17. Nc2 {[%emt 0:02:42]} Qb6 {[%emt 0:06:13]} 18. e5 {[%emt 0:
05:49]} Ne8 {[%emt 0:08:53]} 19. g4 {[%emt 0:05:14]} f5 {[%emt 0:06:32]} 20. g5
{[%emt 0:10:34]} Rd8 {[%emt 0:03:17]} 21. c4 {[%emt 0:02:50]} Ne7 {[%emt 0:01:
08]} 22. b4 {[%emt 0:01:09]} Bc6 {[%emt 0:02:18]} 23. bxc5 {[%emt 0:01:33]}
Qxc5 {[%emt 0:04:22]} 24. Qb4 {[%emt 0:00:13]} Qxb4 {[%emt 0:02:17]} 25. Nxb4 {
[%emt 0:00:01]} Ba4 {[%emt 0:01:06]} 26. Rfc1 {[%emt 0:04:09]} Nc7 {[%emt 0:00:
37]} 27. Rab1 {[%emt 0:01:27]} b6 {[%emt 0:02:00]} 28. Kf2 {[%emt 0:02:40]} Kf7
{[%emt 0:01:22]} 29. Ke1 {[%emt 0:01:59]} h6 {[%emt 0:00:40]} 30. h4 {[%emt 0:
01:33]} hxg5 {[%emt 0:00:04]} 31. hxg5 {[%emt 0:00:03]} Rh8 {[%emt 0:00:12]}
32. Kd2 {[%emt 0:00:41]} Rh2 {[%emt 0:01:50]} 33. Bf3 {[%emt 0:00:37]} b5 {
[%emt 0:04:25]} 34. Rh1 {[%emt 0:07:35]} Rdh8 {[%emt 0:03:08]} 35. Rxh2 {[%emt
0:01:51]} Rxh2 {[%emt 0:00:01]} 36. Rh1 {[%emt 0:00:22]} Rf2 {[%emt 0:02:12]}
37. Rh7+ {[%emt 0:02:00]} Kf8 {[%emt 0:00:58]} 38. Nc6 {[%emt 0:01:53]} bxc4 {
[%emt 0:01:30]} 39. Ncxd4 {[%emt 0:00:15]} cxd3 {[%emt 0:00:42]} 40. Kxd3 {
[%emt 0:00:01]} Rf1 {[%emt 0:00:51]} 41. Nc3 {[%emt 0:01:38]} Bd7 {[%emt 0:02:
14]} 42. Rh1 {[%emt 0:10:43]} Rxh1 {[%emt 0:03:27]} 43. Bxh1 {[%emt 0:00:06]}
Ke8 {[%emt 0:01:19]} 44. Kc4 {[%emt 0:01:36]} Bc8 {[%emt 0:01:17]} 45. a4 {
[%emt 0:04:12]} Kd7 {[%emt 0:03:58]} 46. Ndb5 {[%emt 0:01:29]} Ba6 {[%emt 0:01:
32]} 47. Kc5 {[%emt 0:01:32]} Bxb5 {[%emt 0:03:19]} 48. axb5 {[%emt 0:09:18]}
Nc8 {[%emt 0:01:15]} 49. Bc6+ {[%emt 0:01:12]} Kd8 {[%emt 0:03:14]} 50. Na4 {
[%emt 0:00:44]} Ne7 {[%emt 0:01:27]} 51. Nc3 {[%emt 0:02:04]} Nc8 {[%emt 0:02:
12]} 52. Na4 {[%emt 0:00:45]} Ne7 {[%emt 0:00:16]} 53. b6 {[%emt 0:00:21]}
axb6+ {[%emt 0:00:14]} 54. Nxb6 {[%emt 0:00:05]} Nxc6 {[%emt 0:00:49]} 55. Kxc6
{[%emt 0:00:02]} Ne8 {[%emt 0:00:50]} 1/2-1/2

[Event "Lithuanian Chess League 2021"]
[Site "Various cities"]
[Date "2021.05.14"]
[Round "5.6"]
[White "Sulskis, Sarunas"]
[Black "Laurusas, Tomas"]
[Result "1/2-1/2"]
[WhiteElo "2518"]
[BlackElo "2505"]
[PlyCount "89"]
[TimeControl "90/40+30:0"]
[WhiteClock "0:22:57"]
[BlackClock "0:24:20"]

1. c4 {[%emt 0:00:04]} c6 {[%emt 0:00:17]} 2. d4 {[%emt 0:00:17]} d5 {[%emt 0:
00:06]} 3. cxd5 {[%emt 0:00:17]} cxd5 {[%emt 0:00:06]} 4. Bg5 {[%emt 0:00:07]}
h6 {[%emt 0:15:50]} 5. Bh4 {[%emt 0:00:25]} Qb6 {[%emt 0:00:21]} 6. Nc3 {[%emt
0:04:51]} e6 {[%emt 0:02:07]} 7. Qd2 {[%emt 0:01:40]} Ne7 {[%emt 0:04:42]} 8.
f3 {[%emt 0:02:16]} Nbc6 {[%emt 0:01:16]} 9. Bf2 {[%emt 0:03:44]} Nf5 {[%emt 0:
07:36]} 10. Rd1 {[%emt 0:09:53]} Qa5 {[%emt 0:06:40]} 11. e4 {[%emt 0:01:19]}
Nd6 {[%emt 0:00:05]} 12. e5 {[%emt 0:07:51]} Nc4 {[%emt 0:02:06]} 13. Bxc4 {
[%emt 0:01:45]} dxc4 {[%emt 0:00:09]} 14. Nge2 {[%emt 0:00:51]} b6 {[%emt 0:12:
59]} 15. O-O {[%emt 0:09:33]} Nb4 {[%emt 0:08:44]} 16. d5 {[%emt 0:13:02]} Nxd5
{[%emt 0:05:49]} 17. Nxd5 {[%emt 0:11:54]} Qxd5 {[%emt 0:01:15]} 18. Qf4 {
[%emt 0:00:45]} Qb7 {[%emt 0:03:42]} 19. Nc3 {[%emt 0:00:37]} Bd7 {[%emt 0:02:
06]} 20. Ne4 {[%emt 0:05:50]} Bc6 {[%emt 0:03:31]} 21. Nd6+ {[%emt 0:05:07]}
Bxd6 {[%emt 0:00:16]} 22. Rxd6 {[%emt 0:00:35]} Bd5 {[%emt 0:08:22]} 23. Rd1 {
[%emt 0:01:38]} Rd8 {[%emt 0:02:47]} 24. Rxd8+ {[%emt 0:03:21]} Kxd8 {[%emt 0:
00:02]} 25. Qxc4 {[%emt 0:00:30]} Kd7 {[%emt 0:04:02]} 26. Qg4 {[%emt 0:03:06]}
g6 {[%emt 0:00:53]} 27. Qc4 {[%emt 0:02:47]} g5 {[%emt 0:02:10]} 28. h4 {[%emt
0:01:51]} Rg8 {[%emt 0:02:15]} 29. Qe4 {[%emt 0:01:26]} Rh8 {[%emt 0:01:32]}
30. Qg4 {[%emt 0:02:19]} Kc8 {[%emt 0:00:06]} 31. hxg5 {[%emt 0:00:45]} hxg5 {
[%emt 0:00:04]} 32. Qxg5 {[%emt 0:00:27]} Bxa2 {[%emt 0:00:45]} 33. Qg7 {[%emt
0:04:24]} Re8 {[%emt 0:00:06]} 34. Rd6 {[%emt 0:00:23]} Qc7 {[%emt 0:02:26]}
35. Kh2 {[%emt 0:00:49]} f5 {[%emt 0:00:32]} 36. Qxc7+ {[%emt 0:01:01]} Kxc7 {
[%emt 0:00:06]} 37. Rd2 {[%emt 0:00:13]} Rh8+ {[%emt 0:01:21]} 38. Kg3 {[%emt
0:00:26]} Bd5 {[%emt 0:01:01]} 39. Kf4 {[%emt 0:00:19]} Kc6 {[%emt 0:00:39]}
40. g4 {[%emt 0:00:45]} fxg4 {[%emt 0:00:56]} 41. fxg4 {[%emt 0:00:14]} Rh2 {
[%emt 0:03:29]} 42. g5 {[%emt 0:02:01]} Kd7 {[%emt 0:04:06]} 43. Be1 {[%emt 0:
03:28]} Rxd2 {[%emt 0:00:51]} 44. Bxd2 {[%emt 0:00:06]} Ke8 {[%emt 0:00:17]}
45. Be3 {[%emt 0:03:43]} 1/2-1/2

[Event "Lithuanian Chess League 2021"]
[Site "Various cities"]
[Date "2021.05.14"]
[Round "5.7"]
[White "Pultinevicius, Paulius"]
[Black "Bieliauskas, Marius"]
[Result "1-0"]
[WhiteElo "2501"]
[BlackElo "2201"]
[PlyCount "77"]
[TimeControl "90/40+30:0"]
[WhiteClock "0:24:26"]
[BlackClock "0:01:06"]

1. d4 {[%emt 0:00:03]} d5 {[%emt 0:00:36]} 2. c4 {[%emt 0:00:05]} e6 {[%emt 0:
00:40]} 3. Nc3 {[%emt 0:01:37]} Nf6 {[%emt 0:03:52]} 4. Nf3 {[%emt 0:01:02]}
Be7 {[%emt 0:05:38]} 5. Bf4 {[%emt 0:02:33]} O-O {[%emt 0:00:59]} 6. e3 {[%emt
0:00:47]} Nbd7 {[%emt 0:05:16]} 7. Qc2 {[%emt 0:01:11]} c5 {[%emt 0:06:23]} 8.
Rd1 {[%emt 0:00:25]} Qa5 {[%emt 0:06:35]} 9. Nd2 {[%emt 0:03:19]} cxd4 {[%emt
0:04:46]} 10. exd4 {[%emt 0:00:27]} Bb4 {[%emt 0:08:54]} 11. Be2 {[%emt 0:11:
07]} Re8 {[%emt 0:11:08]} 12. O-O {[%emt 0:02:09]} Bxc3 {[%emt 0:03:19]} 13.
bxc3 {[%emt 0:00:28]} b6 {[%emt 0:07:35]} 14. Bd6 {[%emt 0:06:15]} dxc4 {[%emt
0:04:47]} 15. Nxc4 {[%emt 0:01:58]} Qf5 {[%emt 0:00:58]} 16. Bd3 {[%emt 0:03:
11]} Qh5 {[%emt 0:00:18]} 17. Rfe1 {[%emt 0:03:20]} Ba6 {[%emt 0:04:33]} 18.
Bg3 {[%emt 0:03:24]} Bxc4 {[%emt 0:06:57]} 19. Bxc4 {[%emt 0:00:23]} Qa5 {
[%emt 0:04:19]} 20. Bd3 {[%emt 0:09:49]} e5 {[%emt 0:03:45]} 21. Re3 {[%emt 0:
05:13]} exd4 {[%emt 0:01:38]} 22. cxd4 {[%emt 0:00:22]} Rac8 {[%emt 0:02:05]}
23. Qe2 {[%emt 0:01:25]} Nf8 {[%emt 0:00:53]} 24. Bc4 {[%emt 0:04:26]} Rxe3 {
[%emt 0:04:12]} 25. fxe3 {[%emt 0:00:07]} Qa3 {[%emt 0:00:17]} 26. Rf1 {[%emt
0:02:44]} Re8 {[%emt 0:00:38]} 27. Bb3 {[%emt 0:03:32]} Qe7 {[%emt 0:00:02]}
28. Rf3 {[%emt 0:00:53]} Ne6 {[%emt 0:00:38]} 29. Qb5 {[%emt 0:00:36]} Ne4 {
[%emt 0:00:36]} 30. Bh4 {[%emt 0:01:17]} g5 {[%emt 0:00:56]} 31. Be1 {[%emt 0:
02:14]} g4 {[%emt 0:00:32]} 32. Rf1 {[%emt 0:00:37]} Nd6 {[%emt 0:00:23]} 33.
Qd3 {[%emt 0:03:54]} Ng5 {[%emt 0:00:23]} 34. Bg3 {[%emt 0:01:10]} Nge4 {[%emt
0:00:46]} 35. Be5 {[%emt 0:00:29]} Qg5 {[%emt 0:01:17]} 36. Rf4 {[%emt 0:01:42]
} Qg6 {[%emt 0:00:54]} 37. Bd5 {[%emt 0:00:58]} Rc8 {[%emt 0:00:49]} 38. Bxe4 {
[%emt 0:00:20]} Rc1+ {[%emt 0:00:03]} 39. Kf2 {[%emt 0:00:06]} 1-0